Cogmind - Beta 11.1 @@@ ROGUE MODE // 2022.05.06 @ 06:27:27 Player: kway_side Result: Destroyed self with Grenade Launcher Performance ------------- Evolutions (0) 0 Regions Visited (2) 400 Robots Destroyed (19) 95 Value Destroyed (464) 464 Prototype IDs (3) 60 Alien Tech Used (0) 0 Bonus (0) 0 TOTAL SCORE: 1019 Bonus ------- None Cogmind --------- Core Integrity 0/250 Matter 255/300 Energy 100/100 System Corruption 0% Temperature Cool (0) Movement Walking (190) Ox1 Location -10/Mines Parts ------- > --- POWER (1) -------- (None) > --- PROPULSION (2) --- Aluminum Leg Aluminum Leg > --- UTILITY (2) ------ Large Storage Unit Targeting Computer > --- WEAPON (2) ------- Heavy Assault Rifle Grenade Launcher > --- INVENTORY (15) --- Aluminum Leg Aluminum Leg Compact Wheel Signal Interpreter Improved Terrain Scanner Propulsion Shielding Utility Shielding EM Pulse Gun Beam Rifle Particle Gun Heavy Assault Rifle Heavy Assault Rifle Heavy Assault Rifle Mining Laser Welding Torch Peak State ------------ > --- POWER ------------ Ion Engine > --- PROPULSION ------- Aluminum Leg Compact Wheel > --- UTILITY ---------- Large Storage Unit Targeting Computer > --- WEAPON ----------- Heavy Assault Rifle Heavy Assault Rifle > --- INVENTORY -------- Aluminum Leg Aluminum Leg Aluminum Leg Signal Interpreter Improved Terrain Scanner Propulsion Shielding Utility Shielding EM Pulse Gun Beam Rifle Particle Gun Heavy Assault Rifle Heavy Assault Rifle Grenade Launcher Mining Laser Welding Torch [Rating: 11] Favorites ----------- Power Ion Engine Engine Ion Engine Propulsion Aluminum Leg Leg Aluminum Leg Wheel Compact Wheel Utility Large Storage Unit Storage Large Storage Unit Processor Targeting Computer Protection Propulsion Shielding Weapon Heavy Assault Rifle Energy Gun Particle Gun Ballistic Gun Heavy Assault Rifle Launcher Grenade Launcher Special Weapon Welding Torch Build | -11 -10 -10 ------- Run | Scr Mat Min Slots Evolved . | . . . Power . | . . . Propulsion . | . . . Utility . | . . . Weapon . | . . . Parts Attached 13 | . 9 4 Power 2 | . 1 1 Engine 2 | . 1 1 Core . | . . . Reactor . | . . . Propulsion 3 | . 1 2 Treads . | . . . Leg 2 | . 1 1 Wheel 1 | . . 1 Hover . | . . . Flight . | . . . Utility 3 | . 3 . Device . | . . . Storage 1 | . 1 . Processor 1 | . 1 . Hackware . | . . . Protection 1 | . 1 . Artifact . | . . . Weapon 5 | . 4 1 Energy Gun 1 | . 1 . Energy Cannon . | . . . Ballistic Gun 2 | . 2 . Ballistic Cannon . | . . . Launcher 1 | . . 1 Special Weapon 1 | . 1 . Impact Weapon . | . . . Slashing Weapon . | . . . Piercing Weapon . | . . . Special Melee Weapon . | . . . Unidentified Prototypes . | . . . Parts Lost 2 | . . 2 Power 2 | . . 2 Propulsion . | . . . Utility . | . . . Weapon . | . . . Highest Loss Streak 1 | . . 1 To Critical Strikes . | . . . Average Slot Usage (%) 99 | . 99 100 Engine 13 | . 13 14 Leg 27 | . 28 23 Storage 14 | . 14 14 Processor 8 | . 7 14 Protection 5 | . 6 . Energy Gun 6 | . 8 . Ballistic Gun 20 | . 19 27 Naked Turns . | . . . Heaviest Build 31 | 13 31 31 Greatest Support 20 | 20 20 20 Greatest Overweight (x) 1 | . 1 1 Average Overweight (x) . | . . 1 Largest Inventory Capacity 15 | . 15 15 Average Capacity 14 | . 14 15 Most Carried 15 | . 15 15 Average Carried 14 | . 13 14 Final Capacity 15 | 8 15 15 Final Carried 15 | 6 15 15 Class Distribution -------------------- 100% | Mutant Dominant Class ---------------- Mutant | -10/Materials Mutant | -10/Mines Resources | -11 -10 -10 ----------- Run | Scr Mat Min Matter Collected 476 | 200 226 50 Remotely . | . . . Salvage Created 713 | . 693 20 Parts 47 | . 47 . Haulers Intercepted 2 | . 2 . Recyclers Shooed . | . . . Parts Field Recycled . | . . . Retrieved Matter . | . . . Parts Self-Destructed . | . . . Prevented . | . . . Kills | -11 -10 -10 ------- Run | Scr Mat Min Combat Hostiles Destroyed 17 | . 13 4 Guns 15 | . 13 2 AOE 2 | . . 2 Classes Destroyed 7 | . 6 1 Hauler 2 | . 2 . Recycler 1 | . 1 . Operator 2 | . 2 . Watcher 1 | . 1 . Swarmer 3 | . 3 . Grunt 10 | . 10 . Assembled 4 | . . 4 Best Kill Streak 5 | . 5 4 Combat Bots Only 4 | . 4 4 Max Kills in Single Turn 1 | . 1 1 Gunslinging . | . . . Exploded 1 | . . 1 Melee . | . . . Uniques/NPCs Destroyed . | . . . Combat | -11 -10 -10 -------- Run | Scr Mat Min Damage Taken 761 | . 303 458 Core 269 | . 113 156 Absorbed by Shields . | . . . Redirected to Shielding 17 | . 17 . Regen/Repaired (Parts) 34 | . 34 . Core Remaining (%) 100 | 100 . . Volleys Fired 54 | . 46 8 Largest 2 | . 2 2 Hottest 85 | . 85 46 Shots Fired 99 | . 86 13 Gun 90 | . 80 10 Cannon . | . . . Launcher 3 | . . 3 Special 6 | . 6 . Kinetic 69 | . 59 10 Thermal 27 | . 27 . Explosive 3 | . . 3 Electromagnetic . | . . . Robot Hit Streak 9 | . 9 5 Robot Miss Streak 4 | . 4 3 Penetration Max . | . . . Secondary Targets 4 | . 4 . Max Gunslinging Chain 1 | . 1 . Shots Hit Robots 57 | . 48 9 Core Hits 35 | . 29 6 Critical Kills . | . . . Critical Parts Destroyed . | . . . Critical Strikes 1 | . 1 . Burn 1 | . 1 . Melee Attacks . | . . . Impact . | . . . Slashing . | . . . Piercing . | . . . Sneak Attacks . | . . . Combat Hostiles . | . . . Follow-up Attacks . | . . . Damage Inflicted 938 | . 603 335 Guns 695 | . 600 95 Cannons . | . . . Explosions 240 | . . 240 Melee . | . . . Ramming 3 | . 3 . Kinetic 518 | . 423 95 Thermal 177 | . 177 . Explosive 240 | . . 240 Electromagnetic . | . . . Impact . | . . . Slashing . | . . . Piercing . | . . . Highest Corruption . | . . . Average Corruption . | . . . Corruption Purged . | . . . Corruption Blocked . | . . . Overload Shots . | . . . Overflow Damage 19 | . . 19 Projectiles . | . . . Explosions 19 | . . 19 Melee . | . . . Knockbacks . | . . . Impact . | . . . Kinetic . | . . . Secondary . | . . . Self-Inflicted Damage 94 | . . 94 Shots 3 | . . 3 Rammed . | . . . Targets Rammed 2 | . 2 . Kicked 2 | . 2 . Crushed . | . . . Highest Temperature 124 | . 124 . Average Temperature 36 | . 36 . Received Heat Transfer 129 | . 129 . Siege Activations . | . . . Robots Corrupted . | . . . Combat Hostiles . | . . . Parts Fried . | . . . Impact Corruptions . | . . . Robots Melted . | . . . Combat Hostiles . | . . . Parts Melted 1 | . 1 . Heat Transferred 518 | . 518 . Parts Sabotaged . | . . . Parts Stolen . | . . . Parts Stripped . | . . . Power Chain Reactions . | . . . Missiles Intercepted . | . . . Alert | -11 -10 -10 ------- Run | Scr Mat Min Peak Influence 341 | . 341 26 Initial 19 | . . 19 Average 81 | . 98 17 Maximum Alert Level 1 | . 1 . Low Security (%) 92 | . 90 100 Level 1 7 | . 9 . Level 2 . | . . . Level 3 . | . . . Level 4 . | . . . Level 5 . | . . . High Security . | . . . Max Security . | . . . Squads Dispatched 3 | . 3 . Investigation 1 | . 1 . Extermination . | . . . Reinforcement 2 | . 2 . Assault . | . . . Garrison . | . . . Intercept . | . . . Searches Triggered . | . . . Construction Impeded . | . . . Haulers Reinforced . | . . . Active Scanning Responses . | . . . Cargo Convoy Interrupts . | . . . Stealth | -11 -10 -10 --------- Run | Scr Mat Min Distress Signals 3 | . 3 . Communications Jammed . | . . . Distress Signals . | . . . Times Spotted 32 | . 23 9 Peak Tracking Total 4 | . 3 4 Tactical Retreats . | . . . Traps | -11 -10 -10 ------- Run | Scr Mat Min Traps Triggered 1 | . . 1 Indirectly . | . . . Trap Hack Attempts . | . . . Triggered . | . . . Disarmed . | . . . Reprogrammed . | . . . Reused . | . . . Traps Extracted . | . . . Installed . | . . . Triggered . | . . . Machines | -11 -10 -10 ---------- Run | Scr Mat Min Machines Disabled 1 | . 1 . Max in Single Turn 1 | . 1 . Machines Sabotaged . | . . . Garrisons Compromised . | . . . Overloaded Fab Kills . | . . . Hacking | -11 -10 -10 --------- Run | Scr Mat Min Machines Accessed 8 | . 7 1 Terminals 5 | . 5 . Fabricators . | . . . Repair Stations 1 | . 1 . Recycling Units 1 | . 1 . Scanalyzers . | . . . Garrison Access . | . . . Total Hacks 27 | . 26 1 Successful 16 | . 15 1 Failed 11 | . 11 . Catastrophic 1 | . 1 . Database Lockouts . | . . . Manual 11 | . 11 . Terminals 18 | . 18 . Fabricators . | . . . Repair Stations 5 | . 5 . Recycling Units 3 | . 3 . Scanalyzers . | . . . Garrison Access . | . . . Terminal Hacks 10 | . 9 1 Robot Analysis 3 | . 3 . Prototype ID Bank 2 | . 2 . Open Door 1 | . . 1 Branch Access Points 1 | . 1 . Hauler Manifests 1 | . 1 . Registered Components 1 | . 1 . Zone Layout 1 | . 1 . Fabricator Hacks . | . . . Repair Station Hacks 4 | . 4 . Scan Component 2 | . 2 . Repair 2 | . 2 . Recycling Unit Hacks 1 | . 1 . Report Inventory 1 | . 1 . Scanalyzer . | . . . Garrison Access Hacks . | . . . Unauthorized Hacks 1 | . 1 . Terminals 1 | . 1 . Operators 1 | . 1 . Fabricators . | . . . Repair Stations . | . . . Recycling Units . | . . . Scanalyzers . | . . . Garrison Access . | . . . Data Cores Recovered . | . . . Used . | . . . Hacking Detections 7 | . 7 . Full Trace Events 2 | . 2 . Feedback Events . | . . . Feedback Blocked . | . . . Robot Schematics Acquired . | . . . Robots Built . | . . . Authchips . | . . . Time . | . . . Total Robot Build Rating . | . . . Part Schematics Acquired . | . . . Parts Built . | . . . Authchips . | . . . Time . | . . . Total Part Build Rating . | . . . Parts Repaired 2 | . 2 . Time 52 | . 52 . Parts Recycled . | . . . Recycled Matter . | . . . Retrieved Matter . | . . . Retrieved Components . | . . . Parts Scanalyzed . | . . . Part Schematics Acquired . | . . . Parts Damaged . | . . . Bothacking | -11 -10 -10 ------------ Run | Scr Mat Min Used RIF Installer . | . . . Robots Hacked . | . . . Non-combat . | . . . Combat . | . . . Robot Hacks Applied . | . . . Relay Couplers Released . | . . . Fabnet Peak Effective % . | . . . Robots Rewired . | . . . Allies Hacked . | . . . Hacks Repelled . | . . . Allies | -11 -10 -10 -------- Run | Scr Mat Min Total Allies . | . . . Largest Group . | . . . Highest-Rated Group . | . . . Highest-Rated Ally . | . . . Total Orders . | . . . Ally Attacks . | . . . Total Damage . | . . . Kills . | . . . Allies Corrupted . | . . . Allies Melted . | . . . Intel | -11 -10 -10 ------- Run | Scr Mat Min Robot Analysis Total 3 | . 3 . Derelict Logs Recovered . | . . . Drone Launches . | . . . Drone Recoveries . | . . . Exploration | -11 -10 -10 ------------- Run | Scr Mat Min Turns Passed 2002 | . 1595 407 Spaces Moved 964 | 1 736 227 Core . | . . . Treads . | . . . Legs 885 | 1 736 148 Wheels 79 | . . 79 Hover . | . . . Flight . | . . . Fastest Speed 115 | 120 120 115 Average Speed 176 | 120 180 163 Slowest Speed 190 | 120 190 190 Overloaded Moves . | . . . Propulsion Burnouts . | . . . Robots Hopped . | . . . Cave-ins Triggered . | . . . Exploration Rate (%) 52 | 1 91 64 Regions Visited 2 Branch Regions 1 Pre-discovered Areas 1 | . . 1 Known Exits Taken 1 | . 1 . Unknown Exits Taken 1 | 1 . . Scrap Searched . | . . . Spaces Dug . | . . . Terrain Destroyed 13 | . . 13 Melee . | . . . Projectile . | . . . AOE 13 | . . 13 Terrain Rammed . | . . . Walls Destroyed . | . . . Machines Disabled . | . . . Actions | -11 -10 -10 --------- Run | Scr Mat Min Total 1174 | . 925 249 Wait 99 | . 92 7 Move 962 | . 735 227 Hop . | . . . Pick Up 26 | . 24 2 Fast Attach 2 | . 2 . Attach 1 | . . 1 Detach . | . . . Swap 10 | . 7 3 Drop 18 | . 17 1 Fire 54 | . 46 8 Melee . | . . . Ram . | . . . Kick 2 | . 2 . Crush . | . . . Escape Stasis . | . . . Rewire . | . . . Trap . | . . . Miscellaneous . | . . . Route ------- -11/Scrapyard -10/Materials (discovered 3 exits: [*Mat x2] / *Min) -10/Mines History --------- Turn | Location | Event 1 | -11/Scrapyard | Discovered new exit (range 0) 1 | -11/Scrapyard | Entered Materials 110 | -10/Materials | Identified exit to Mines 276 | -10/Materials | Discovered new exit (range 15) 315 | -10/Materials | Build established: Mutant 805 | -10/Materials | Repaired Propulsion Shielding 832 | -10/Materials | Repaired Ion Engine 1392 | -10/Materials | Discovered new exit (range 15) 1596 | -10/Materials | Entered Mines 1637 | -10/Mines | Learned location of Storage (-8) 1819 | -10/Mines | Found a hidden stash of uninstalled traps 1843 | -10/Mines | Assembled infested the area 1848 | -10/Mines | Assisted by a Guerilla fighting off Assembled 1922 | -10/Mines | Met a Derelict who couldn't figure out how to use a Trap Extractor 1923 | -10/Mines | Core integrity fell below 50% 1997 | -10/Mines | Core integrity fell below 20% 2003 | -10/Mines | Destroyed self with Grenade Launcher Last Messages --------------- 01922_ Explosive Trap short circuited. 01922_ A bubble of electromagnetic force engulfs the area. 01922_ An explosion rips through the floor. 01922_ Chain reaction triggered in Ion Engine. 01922_ AR-6I6(g) destroyed. 01923_ Acquired 10 matter. 01930_ The unstable cave ceiling collapses. 01942_ U-05 Engineer builds a Wall. 01942_ Acquired Mining Laser. 01943_ Acquired 10 matter. 01948_ Dropped Aluminum Leg. 01949_ Acquired Imp. Terrain Scanner. 01974_ as-43354 destroyed. 01983_ as-68708 destroyed. 01989_ Acquired 10 matter. 01992_ Acquired 20 matter. 01999_ as-90440 destroyed. 02001_ Destroyed Asb. Hover Unit. 02001_ as-79401 destroyed. 02001_ Ion Engine destroyed. Map ----- +----------------------------------------------------+ | ?????????????????????????????????# #????? | | ?????????????????????????????????# ##????? | | ????????????????????????????????## ##?????? | | ????????????????????????????????# ##??????? | | ????????????????????????????????# ##??????? | | ????????????????????????????????# ##?????? | | ????????????????????????????????## ##????? | | ?????????????????????????????????## #????? | | ??????????????????????????????????# #??### | | ??????????????????????????????????# #?? | | ??????????????????????????????????## ##?# # | | ???????????????????????????????????# ##??# # | | ???????????????????????????????????# #???# # | | ???????????????????????????????????# #???# # | | ???????????????????????????????????# ##### | | ???????????????????????????????????# ## | | ??????? ???????????????????????????# | | ????? ?????????????????????????## | | ????? ?????????????????????????# | | ????# ????????????????????????# # | | ???? ???????????????????????### # | | ???? [%????????????????????????## # | | ????# =????????####?????????????## # | | ?????# * *?????### ####???????????### # | | ?????# % % ???## ##????????????## # | | ?????# ??# a@ #?????????????# # | | ?????# % ## #????????????## | | ?????# ## a ############### | | ???????????# ! ####?# ! ## | | ???????????## ????## [ | | ????????????## # % ###????# ! ### | | ?????????????##### #???????# ]!% ##?? | | ?????????????????# #?####???# ![! ##??? | | ?????????????????# ### ##??## /# #???? | | ?????????????????# ## #???##### ##???? | | ?????????????????#%## ##??????## ###????# | | ?????????????????# ## ####????#####?????## | | ?????????????????# %%% ######"######### | | ?????????????????#### = %| == | | ????????????? !%% %! | | ????????????# ## ###"#"######## | | ????????????# ############# #"##%###??????## | | ???????????????????????????##### # #?????????? | | ????????????????????????????????####?????????? | | ?????????????????????????????????????????????? | | ?????????????????????????????????????????????? | | ?????????????????????????????????????????????? | | ?????????????????????????????????????????????? | | ?????????????????????????????????????????????? | | ?????????????????????????????????????????????? | +----------------------------------------------------+ Best States ------------- Heat Dissipation 25 Energy Generation 10 Energy Capacity 250 Matter Stores 300 Matter Capacity 300 Sight Range 16 Terrain Scan Density 10 Propulsion Shielding 33 Evasion (%) 55 Targeting Accuracy 5 Item Schematics ----------------- None Robot Schematics ------------------ None Fabricated ------------ Nothing Alien Tech Used ----------------- None Achievements -------------- None Challenges ------------ None Game ------ Seed MicrowarpNetworkCloak Manual? 0 Play Time 00:25:25 Cumulative 84.1 hours Start 2022.05.06 @ 05:53:41 End 2022.05.06 @ 06:27:27 Sessions 1 Manual Loads 0 Difficulty Rogue Special Mode None Game No. 91 Rogue 91 Adventurer 0 Explorer 0 Win Type - Total 0 Types 0/0/0/0/0/0/0/0/0 Lore% 25 Gallery% 34 Achievement% 28 Wizard Run 0 Options --------- ASCII 0 Keyboard 0 Movement Numpad Keybinds 0 Fullscreen 2 Font 18/Smallcaps Map View 76x50 Tactical HUD 1 Map Filters NONE Filters NONE Steam 1 RUN: 88fec6e8-b171-4159-b51d-ea810274dfe9